fUST/lending_fUST_20250715
["ID","MTS","AMOUNT","RATE_DAILY","PERIOD"]
[372265696,1752568271310,-460.0,0.00021095,2]
[372265697,1752568271319,-289.79576107,0.00021095,2]
[372265698,1752568271329,-460.0,0.00021095,2]
[372265699,1752568271339,-592.01,0.00021095,2]
[372265700,1752568271350,-460.0,0.00021095,2]
[372265701,1752568271360,-1000.75,0.00021095,2]
[372265702,1752568271371,-460.0,0.00021095,2]
[372265703,1752568271381,-906.02,0.00021095,2]
[372265704,1752568271391,-460.0,0.00021095,2]
[372265705,1752568271401,-460.0,0.00021095,2]
[372265706,1752568271410,-478.18,0.00021095,2]
[372265707,1752568271420,-460.0,0.00021095,2]
[372265708,1752568271429,-460.0,0.00021095,2]
[372265709,1752568271439,-460.0,0.00021095,2]
[372265710,1752568271451,-151.0,0.00021095,2]
[372265711,1752568271460,-501.02,0.00021095,2]
[372265712,1752568271470,-460.0,0.00021095,2]
[372265713,1752568271479,-460.0,0.00021095,2]
[372265714,1752568271489,-460.0,0.00021095,2]
[372265715,1752568271499,-1045.04,0.00021095,2]
[372265716,1752568271510,-460.0,0.00021095,2]
[372265717,1752568271519,-479.16,0.00021095,2]
[372265718,1752568271528,-460.0,0.00021095,2]
[372265719,1752568271538,-460.0,0.00021095,2]
[372265720,1752568271547,-464.2836076,0.00021095,2]
[372265721,1752568271557,-460.0,0.00021095,2]
[372265722,1752568271567,-460.0,0.00021095,2]
[372265723,1752568271577,-460.0,0.00021095,2]
[372265724,1752568271586,-460.0,0.00021095,2]
[372265725,1752568271595,-460.0,0.00021095,2]
[372265726,1752568271604,-460.0,0.00021095,2]
[372265727,1752568271613,-797.85,0.00021095,2]
[372265728,1752568271623,-1013.19,0.00021095,2]
[372265729,1752568271631,-460.0,0.00021095,2]
[372265730,1752568271640,-465.477809,0.00021095,2]
[372265731,1752568271650,-460.0,0.00021095,2]
[372265732,1752568271659,-153.10962694,0.00021095,2]
[372265733,1752568271668,-460.0,0.00021095,2]
[372265734,1752568271677,-460.0,0.00021095,2]
[372265735,1752568271686,-2728.73,0.00021095,2]
[372265736,1752568271695,-460.0,0.00021095,2]
[372265737,1752568271705,-460.0,0.00021095,2]
[372265738,1752568271714,-496.29,0.00021095,2]
[372265739,1752568271723,-525.20988328,0.00021095,2]
[372265740,1752568271733,-1064.98,0.00021095,2]
[372265741,1752568271742,-460.0,0.00021095,2]
[372265742,1752568271751,-583.30112813,0.00021095,2]
[372265743,1752568271761,-464.89168803,0.00021095,2]
[372265744,1752568271770,-460.0,0.00021095,2]
[372265745,1752568271779,-791.68,0.00021095,2]
[372265746,1752568271788,-460.0,0.00021095,2]
[372265747,1752568271797,-460.0,0.00021095,2]
[372265748,1752568271806,-460.0,0.00021095,2]
[372265749,1752568271814,-460.0,0.00021095,2]
[372265750,1752568271823,-460.0,0.00021095,2]
[372265751,1752568271832,-727.92,0.00021095,2]
[372265752,1752568271841,-667.4,0.00021095,2]
[372265753,1752568271850,-7923.04,0.00021095,2]
[372265754,1752568271859,-1767.68,0.00021095,2]
[372265755,1752568271868,-7077.23,0.00021095,2]
[372265756,1752568271877,-1795.0,0.00021095,2]
[372265757,1752568271886,-460.0,0.00021095,2]
[372265758,1752568271895,-460.0,0.00021095,2]
[372265759,1752568271904,-2005.5,0.00021095,2]
[372265760,1752568271913,-460.0,0.00021095,2]
[372265761,1752568271925,-460.0,0.00021095,2]
[372265762,1752568271934,-460.0,0.00021095,2]
[372265763,1752568271943,-460.0,0.00021095,2]
[372265764,1752568271952,-460.0,0.00021095,2]
[372265765,1752568271962,-460.0,0.00021095,2]
[372265766,1752568271972,-460.0,0.00021095,2]
[372265767,1752568271981,-460.0,0.00021095,2]
[372265768,1752568271990,-460.0,0.00021095,2]
[372265769,1752568272000,-1108.93,0.00021095,2]
[372265770,1752568272011,-460.0,0.00021095,2]
[372265771,1752568272020,-2528.48,0.00021095,2]
[372265772,1752568272030,-460.0,0.00021095,2]
[372265773,1752568272040,-460.0,0.00021095,2]
[372265774,1752568272049,-460.0,0.00021095,2]
[372265775,1752568272058,-5262.85,0.00021095,2]
[372265776,1752568272067,-460.0,0.00021095,2]
[372265777,1752568272077,-649.45,0.00021095,2]
[372265778,1752568272086,-460.0,0.00021095,2]
[372265779,1752568272096,-151.0,0.00021095,2]
[372265780,1752568272106,-460.0,0.00021095,2]
[372265781,1752568272115,-516.15,0.00021095,2]
[372265782,1752568272125,-460.0,0.00021095,2]
[372265783,1752568272134,-509.44,0.00021095,2]
[372265784,1752568272144,-460.0,0.00021095,2]
[372265785,1752568272154,-460.0,0.00021095,2]
[372265786,1752568272164,-935.3,0.00021095,2]
[372265787,1752568272174,-1072.07,0.00021095,2]
[372265788,1752568272184,-460.0,0.00021095,2]
[372265789,1752568272194,-460.0,0.00021095,2]
[372265790,1752568272204,-962.23,0.00021095,2]
[372265791,1752568272214,-460.0,0.00021095,2]
[372265792,1752568272223,-1205.09,0.00021095,2]
[372265793,1752568272233,-8553.46,0.00021095,2]
[372265794,1752568272243,-483.94,0.00021095,2]
[372265795,1752568272253,-2434.39,0.00021095,2]
[372265796,1752568272262,-478.37757652,0.00021095,2]
[372265797,1752568272272,-460.0,0.00021095,2]
[372265798,1752568272282,-460.0,0.00021095,2]
[372265799,1752568272388,-865.81,0.00021095,2]
[372265800,1752568272398,-592.14,0.00021095,2]
[372265801,1752568272408,-460.0,0.00021095,2]
[372265802,1752568272418,-924.63,0.00021095,2]
[372265803,1752568272427,-4180.58,0.00021095,2]
[372265804,1752568272437,-616.25,0.00021095,2]
[372265805,1752568272448,-460.0,0.00021095,2]
[372265806,1752568272457,-1533.03,0.00021095,2]
[372265807,1752568272467,-460.0,0.00021095,2]
[372265808,1752568272478,-688.33,0.00021095,2]
[372265809,1752568272488,-648.63,0.00021095,2]
[372265810,1752568272500,-886.34,0.00021095,2]
[372265811,1752568272509,-966.64,0.00021095,2]
[372265812,1752568272519,-460.0,0.00021095,2]
[372265813,1752568272530,-460.0,0.00021095,2]
[372265814,1752568272540,-151.0,0.00021095,2]
[372265815,1752568272550,-460.0,0.00021095,2]
[372265816,1752568272559,-1951.24,0.00021095,2]
[372265817,1752568272570,-689.19,0.00021095,2]
[372265818,1752568272579,-460.0,0.00021095,2]
[372265819,1752568272590,-460.0,0.00021095,2]
[372265820,1752568272600,-460.0,0.00021095,2]
[372265821,1752568272610,-460.0,0.00021095,2]
[372265822,1752568272619,-460.0,0.00021095,2]
[372265823,1752568272629,-2572.3,0.00021095,2]
[372265824,1752568272638,-460.0,0.00021095,2]
[372265825,1752568272647,-460.0,0.00021095,2]
[372265826,1752568272657,-460.0,0.00021095,2]
[372265827,1752568272667,-518.31,0.00021095,2]
[372265828,1752568272677,-460.0,0.00021095,2]
[372265829,1752568272686,-239.716973,0.00021095,2]
[372265830,1752568272696,-460.0,0.00021095,2]
[372265831,1752568272706,-922.11,0.00021095,2]
[372265832,1752568272715,-1848.23,0.00021095,2]
[372265833,1752568272724,-477.88,0.00021095,2]
[372265834,1752568272734,-7815.44,0.00021095,2]
[372265835,1752568272743,-1098.55,0.00021095,2]
[372265836,1752568272753,-460.0,0.00021095,2]
[372265837,1752568272762,-460.0,0.00021095,2]
[372265838,1752568272771,-600.27,0.00021095,2]
[372265839,1752568272781,-2000.0,0.00021116,2]
[372265840,1752568272791,-2000.0,0.00021116,2]
[372265841,1752568272801,-2004.65986824,0.00021116,2]
[372265842,1752568272811,-2000.0,0.00021116,2]
[372265843,1752568272821,-1481.75419532,0.00021116,2]
[372265844,1752568272830,-865.86894857,0.00021121,2]
[372265845,1752568272840,-2500.0,0.00021164,2]
[372265846,1752568272849,-2500.0,0.00021164,2]
[372265847,1752568272859,-500.0,0.00021191,2]
[372265848,1752568272868,-215.0738,0.00021305,2]
[372265849,1752568272878,-12039.6221253,0.00021314,5]
[372265850,1752568272887,-800.0,0.00021352,2]
[372265851,1752568272897,-360.0,0.00021354,2]
[372265852,1752568272906,-460.0,0.00021369,2]
[372265853,1752568272916,-460.0,0.00021369,2]
[372265854,1752568272930,-460.0,0.00021369,2]
[372265855,1752568272939,-426.85962684,0.00021369,2]
[372265856,1752568272949,-460.0,0.00021369,2]
[372265857,1752568272959,-460.0,0.00021369,2]
[372265858,1752568272969,-460.0,0.00021369,2]
[372265859,1752568272978,-474.04,0.00021369,2]
[372265860,1752568272988,-460.0,0.00021369,2]
[372265861,1752568272999,-460.0,0.00021369,2]
[372265862,1752568273009,-460.0,0.00021369,2]
[372265863,1752568273018,-151.0,0.00021369,2]
[372265864,1752568273028,-945.03,0.00021369,2]
[372265865,1752568273040,-460.0,0.00021369,2]
[372265866,1752568273050,-460.0,0.00021369,2]
[372265867,1752568273059,-641.07,0.00021369,2]
[372265868,1752568273069,-460.0,0.00021369,2]
[372265869,1752568273078,-460.0,0.00021369,2]
[372265870,1752568273088,-460.0,0.00021369,2]
[372265871,1752568273098,-460.0,0.00021369,2]
[372265872,1752568273107,-542.44,0.00021369,2]
[372265873,1752568273116,-460.0,0.00021369,2]
[372265874,1752568273126,-460.0,0.00021369,2]
[372265875,1752568273135,-460.0,0.00021369,2]
[372265876,1752568273145,-460.0,0.00021369,2]
[372265877,1752568273155,-151.0,0.00021369,2]
[372265878,1752568273164,-517.74,0.00021369,2]
[372265879,1752568273174,-460.0,0.00021369,2]
[372265880,1752568273183,-460.0,0.00021369,2]
[372265881,1752568273193,-165.979699,0.00021369,2]
[372265882,1752568273202,-777.99,0.00021369,2]
[372265883,1752568273212,-165.979699,0.00021369,2]
[372265884,1752568273222,-460.0,0.00021369,2]
[372265885,1752568273231,-465.48192467,0.00021369,2]
[372265886,1752568273241,-509.10184051,0.00021369,2]
[372265887,1752568273251,-592.01,0.00021369,2]
[372265888,1752568273260,-460.0,0.00021369,2]
[372265889,1752568273269,-1000.75,0.00021369,2]
[372265890,1752568273279,-460.0,0.00021369,2]
[372265891,1752568273289,-906.02,0.00021369,2]
[372265892,1752568273298,-460.0,0.00021369,2]
[372265893,1752568273307,-151.33233934,0.00021369,2]
[372265894,1752568273317,-478.18,0.00021369,2]
[372265895,1752568273337,-460.0,0.00021369,2]
[372265896,1752568273347,-460.0,0.00021369,2]
[372265897,1752568273356,-460.0,0.00021369,2]
[372265898,1752568273365,-501.02,0.00021369,2]
[372265899,1752568273375,-460.0,0.00021369,2]
[372265900,1752568273384,-564.48562918,0.00021369,2]
[372265901,1752568273393,-460.0,0.00021369,2]
[372265902,1752568273403,-1045.04,0.00021369,2]
[372265903,1752568273412,-460.0,0.00021369,2]
[372265904,1752568273421,-479.16,0.00021369,2]
[372265905,1752568273431,-460.0,0.00021369,2]
[372265906,1752568273440,-460.0,0.00021369,2]
[372265907,1752568273449,-460.0,0.00021369,2]
[372265908,1752568273460,-460.0,0.00021369,2]
[372265909,1752568273470,-460.0,0.00021369,2]
[372265910,1752568273479,-460.0,0.00021369,2]
[372265911,1752568273489,-460.0,0.00021369,2]
[372265912,1752568273498,-460.0,0.00021369,2]
[372265913,1752568273507,-797.85,0.00021369,2]
[372265914,1752568273516,-1013.19,0.00021369,2]
[372265915,1752568273526,-460.0,0.00021369,2]
[372265916,1752568273536,-460.0,0.00021369,2]
[372265917,1752568273545,-460.0,0.00021369,2]
[372265918,1752568273555,-460.0,0.00021369,2]
[372265919,1752568273564,-2728.73,0.00021369,2]
[372265920,1752568273574,-460.0,0.00021369,2]
[372265921,1752568273583,-460.0,0.00021369,2]
[372265922,1752568273592,-496.29,0.00021369,2]
[372265923,1752568273602,-1064.98,0.00021369,2]
[372265924,1752568273612,-460.0,0.00021369,2]
[372265925,1752568273622,-460.0,0.00021369,2]
[372265926,1752568273632,-791.68,0.00021369,2]
[372265927,1752568273641,-460.0,0.00021369,2]
[372265928,1752568273651,-460.0,0.00021369,2]
[372265929,1752568273660,-460.0,0.00021369,2]
[372265930,1752568273670,-460.0,0.00021369,2]
[372265931,1752568273679,-460.0,0.00021369,2]
[372265932,1752568273689,-727.92,0.00021369,2]
[372265933,1752568273698,-667.4,0.00021369,2]
[372265934,1752568273707,-7923.04,0.00021369,2]
[372265935,1752568273717,-1767.68,0.00021369,2]
[372265936,1752568273726,-1795.0,0.00021369,2]
[372265937,1752568273736,-7077.23,0.00021369,2]
[372265938,1752568273745,-460.0,0.00021369,2]
[372265939,1752568273754,-460.0,0.00021369,2]
[372265940,1752568273764,-2005.5,0.00021369,2]
[372265941,1752568273773,-460.0,0.00021369,2]
[372265942,1752568273783,-460.0,0.00021369,2]
[372265943,1752568273793,-460.0,0.00021369,2]
[372265944,1752568273802,-460.0,0.00021369,2]
[372265945,1752568273812,-460.0,0.00021369,2]
[372265946,1752568273822,-460.0,0.00021369,2]
[372265947,1752568273834,-460.0,0.00021369,2]
[372265948,1752568273845,-469.56494247,0.00021369,2]
[372265949,1752568273854,-157.13899942,0.00021369,2]
[372265950,1752568273864,-1108.93,0.00021369,2]
[372265951,1752568273873,-460.0,0.00021369,2]
[372265952,1752568273882,-2528.48,0.00021369,2]
[372265953,1752568273892,-460.0,0.00021369,2]
[372265954,1752568273901,-460.0,0.00021369,2]
[372265955,1752568273911,-460.0,0.00021369,2]
[372265956,1752568273924,-5262.85,0.00021369,2]
[372265957,1752568273937,-460.0,0.00021369,2]
[372265958,1752568273947,-649.45,0.00021369,2]
[372265959,1752568273958,-460.0,0.00021369,2]
[372265960,1752568273970,-460.0,0.00021369,2]
[372265961,1752568273980,-516.15,0.00021369,2]
[372265962,1752568273990,-460.0,0.00021369,2]
[372265963,1752568274001,-509.44,0.00021369,2]
[372265964,1752568274010,-460.0,0.00021369,2]
[372265965,1752568274020,-460.0,0.00021369,2]
[372265966,1752568274029,-935.3,0.00021369,2]
[372265967,1752568274040,-1072.07,0.00021369,2]
[372265968,1752568274050,-460.0,0.00021369,2]
[372265969,1752568274059,-460.0,0.00021369,2]
[372265970,1752568274069,-962.23,0.00021369,2]
[372265971,1752568274079,-460.0,0.00021369,2]
[372265972,1752568274088,-1205.09,0.00021369,2]
[372265973,1752568274098,-8553.46,0.00021369,2]
[372265974,1752568274108,-2434.39,0.00021369,2]
[372265975,1752568274117,-460.0,0.00021369,2]
[372265976,1752568274126,-460.0,0.00021369,2]
[372265977,1752568274136,-865.81,0.00021369,2]
[372265978,1752568274146,-592.14,0.00021369,2]
[372265979,1752568274156,-460.0,0.00021369,2]
[372265980,1752568274165,-4180.58,0.00021369,2]
[372265981,1752568274174,-151.0,0.00021369,2]
[372265982,1752568274184,-924.63,0.00021369,2]
[372265983,1752568274194,-616.25,0.00021369,2]
[372265984,1752568274203,-460.0,0.00021369,2]
[372265985,1752568274214,-1533.03,0.00021369,2]
[372265986,1752568274224,-460.0,0.00021369,2]
[372265987,1752568274235,-688.33,0.00021369,2]
[372265988,1752568274245,-648.63,0.00021369,2]
[372265989,1752568274255,-886.34,0.00021369,2]
[372265990,1752568274265,-424.92571093,0.00021369,2]
[372265991,1752568274291,-541.71428907,0.00021369,2]
[372265992,1752568274301,-460.0,0.00021369,2]
[372265993,1752568274310,-484.83126635,0.00021369,2]
[372265994,1752568274319,-460.0,0.00021369,2]
[372265995,1752568274329,-1951.24,0.00021369,2]
[372265996,1752568274338,-689.19,0.00021369,2]
[372265997,1752568274347,-460.0,0.00021369,2]
[372265998,1752568274355,-460.0,0.00021369,2]
[372265999,1752568274365,-460.0,0.00021369,2]
[372266000,1752568274374,-192.40003544,0.00021369,2]
[372266001,1752568274384,-2572.3,0.00021369,2]
[372266002,1752568274393,-460.0,0.00021369,2]
[372266003,1752568274402,-460.0,0.00021369,2]
[372266004,1752568274413,-518.31,0.00021369,2]
[372266005,1752568274422,-460.0,0.00021369,2]
[372266006,1752568274432,-460.0,0.00021369,2]
[372266007,1752568274441,-460.0,0.00021369,2]
[372266008,1752568274452,-922.11,0.00021369,2]
[372266009,1752568274461,-1848.23,0.00021369,2]
[372266010,1752568274471,-477.88,0.00021369,2]
[372266011,1752568274481,-7815.44,0.00021369,2]
[372266012,1752568274491,-1098.55,0.00021369,2]
[372266013,1752568274502,-460.0,0.00021369,2]
[372266014,1752568274512,-460.0,0.00021369,2]
[372266015,1752568274521,-600.27,0.00021369,2]
[372266016,1752568274531,-136040.79061357,0.00021388,2]
[372266017,1752568274542,-500.0,0.00021465,2]
[372266018,1752568274650,-12039.6221253,0.00021555,5]
[372266019,1752568274660,-151.0,0.0002158,2]
[372266020,1752568274670,-25000.0,0.0002158,2]
[372266021,1752568274680,-2000.0,0.00021616,2]
[372266022,1752568274690,-519.35936246,0.00021616,2]
[372266023,1752568274699,-460.0,0.00021643,2]
[372266024,1752568274708,-460.0,0.00021643,2]
[372266025,1752568274718,-460.0,0.00021643,2]
[372266026,1752568274728,-460.0,0.00021643,2]
[372266027,1752568274738,-460.0,0.00021643,2]
[372266028,1752568274748,-458.0,0.00021643,2]
[372266029,1752568274757,-460.0,0.00021643,2]
[372266030,1752568274767,-474.04,0.00021643,2]
[372266031,1752568274776,-460.0,0.00021643,2]
[372266032,1752568274787,-460.0,0.00021643,2]
[372266033,1752568274796,-460.0,0.00021643,2]
[372266034,1752568274805,-945.03,0.00021643,2]
[372266035,1752568274815,-460.0,0.00021643,2]
[372266036,1752568274824,-460.0,0.00021643,2]
[372266037,1752568274834,-641.07,0.00021643,2]
[372266038,1752568274844,-460.0,0.00021643,2]
[372266039,1752568274853,-460.0,0.00021643,2]
[372266040,1752568274862,-460.0,0.00021643,2]
[372266041,1752568274872,-460.0,0.00021643,2]
[372266042,1752568274881,-542.44,0.00021643,2]
[372266043,1752568274891,-460.0,0.00021643,2]
[372266044,1752568274900,-460.0,0.00021643,2]
[372266045,1752568274910,-488.01963404,0.00021643,2]
[372266046,1752568274920,-517.74,0.00021643,2]
[372266047,1752568274933,-425.48832527,0.00021643,2]
[372266048,1752568274943,-460.0,0.00021643,2]
[372266049,1752568274953,-777.99,0.00021643,2]
[372266050,1752568274963,-460.0,0.00021643,2]
[372266051,1752568274972,-262.887288,0.00021643,2]
[372266052,1752568274981,-592.01,0.00021643,2]
[372266053,1752568274992,-460.0,0.00021643,2]
[372266054,1752568275003,-1000.75,0.00021643,2]
[372266055,1752568275013,-460.0,0.00021643,2]
[372266056,1752568275022,-906.02,0.00021643,2]
[372266057,1752568275031,-441.14699189,0.00021643,2]
[372266058,1752568275042,-478.18,0.00021643,2]
[372266059,1752568275051,-460.0,0.00021643,2]
[372266060,1752568275061,-460.0,0.00021643,2]
[372266061,1752568275070,-460.0,0.00021643,2]
[372266062,1752568275080,-501.02,0.00021643,2]
[372266063,1752568275090,-460.0,0.00021643,2]
[372266064,1752568275100,-1045.04,0.00021643,2]
[372266065,1752568275110,-192.99933572,0.00021643,2]
[372266066,1752568275119,-479.16,0.00021643,2]
[372266067,1752568275129,-281.42296728,0.00021643,2]
[372266068,1752568275138,-460.0,0.00021643,2]
[372266069,1752568275147,-460.0,0.00021643,2]
[372266070,1752568275157,-460.0,0.00021643,2]
[372266071,1752568275167,-455.58154844,0.00021643,2]
[372266072,1752568275178,-330.68003145,0.00021643,2]
[372266073,1752568275188,-460.0,0.00021643,2]
[372266074,1752568275197,-797.85,0.00021643,2]
[372266075,1752568275207,-1013.19,0.00021643,2]
[372266076,1752568275217,-468.16342656,0.00021643,2]
[372266077,1752568275227,-330.43429016,0.00021643,2]
[372266078,1752568275237,-460.0,0.00021643,2]
[372266079,1752568275247,-460.0,0.00021643,2]
[372266080,1752568275256,-2728.73,0.00021643,2]
[372266081,1752568275266,-460.0,0.00021643,2]
[372266082,1752568275276,-496.29,0.00021643,2]
[372266083,1752568275287,-1064.98,0.00021643,2]
[372266084,1752568275296,-460.0,0.00021643,2]
[372266085,1752568275306,-460.0,0.00021643,2]
[372266086,1752568275315,-791.68,0.00021643,2]
[372266087,1752568275325,-460.0,0.00021643,2]
[372266088,1752568275334,-460.0,0.00021643,2]
[372266089,1752568275344,-460.0,0.00021643,2]
[372266090,1752568275354,-460.0,0.00021643,2]
[372266091,1752568275363,-460.0,0.00021643,2]
[372266092,1752568275372,-727.92,0.00021643,2]
[372266093,1752568275381,-667.4,0.00021643,2]
[372266094,1752568275390,-7923.04,0.00021643,2]
[372266095,1752568275399,-1767.68,0.00021643,2]
[372266096,1752568275408,-1795.0,0.00021643,2]
[372266097,1752568275417,-7077.23,0.00021643,2]
[372266098,1752568275426,-460.0,0.00021643,2]
[372266099,1752568275435,-460.0,0.00021643,2]
[372266100,1752568275445,-2005.5,0.00021643,2]
[372266101,1752568275454,-460.0,0.00021643,2]
[372266102,1752568275463,-460.0,0.00021643,2]
[372266103,1752568275472,-460.0,0.00021643,2]
[372266104,1752568275482,-460.0,0.00021643,2]
[372266105,1752568275491,-460.0,0.00021643,2]
[372266106,1752568275500,-460.0,0.00021643,2]
[372266107,1752568275509,-1108.93,0.00021643,2]
[372266108,1752568275518,-460.0,0.00021643,2]
[372266109,1752568275527,-2528.48,0.00021643,2]
[372266110,1752568275538,-460.0,0.00021643,2]
[372266111,1752568275547,-460.0,0.00021643,2]
[372266112,1752568275556,-460.0,0.00021643,2]
[372266113,1752568275565,-460.0,0.00021643,2]
[372266114,1752568275574,-649.45,0.00021643,2]
[372266115,1752568275583,-5262.85,0.00021643,2]
[372266116,1752568275592,-460.0,0.00021643,2]
[372266117,1752568275601,-460.0,0.00021643,2]
[372266118,1752568275610,-460.0,0.00021643,2]
[372266119,1752568275618,-516.15,0.00021643,2]
[372266120,1752568275628,-460.0,0.00021643,2]
[372266121,1752568275637,-509.44,0.00021643,2]
[372266122,1752568275646,-460.0,0.00021643,2]
[372266123,1752568275655,-935.3,0.00021643,2]
[372266124,1752568275663,-1072.07,0.00021643,2]
[372266125,1752568275672,-460.0,0.00021643,2]
[372266126,1752568275681,-594.7,0.00021643,2]
[372266127,1752568275690,-962.23,0.00021643,2]
[372266128,1752568275699,-460.0,0.00021643,2]
[372266129,1752568275708,-1205.09,0.00021643,2]
[372266130,1752568275717,-8553.46,0.00021643,2]
[372266131,1752568275725,-2434.39,0.00021643,2]
[372266132,1752568275734,-460.0,0.00021643,2]
[372266133,1752568275743,-460.0,0.00021643,2]
[372266134,1752568275752,-865.81,0.00021643,2]
[372266135,1752568275760,-592.14,0.00021643,2]
[372266136,1752568275769,-460.0,0.00021643,2]
[372266137,1752568275778,-4180.58,0.00021643,2]
[372266138,1752568275787,-924.63,0.00021643,2]
[372266139,1752568275796,-616.25,0.00021643,2]
[372266140,1752568275805,-460.0,0.00021643,2]
[372266141,1752568275814,-1533.03,0.00021643,2]
[372266142,1752568275823,-460.0,0.00021643,2]
[372266143,1752568275833,-688.33,0.00021643,2]
[372266144,1752568275842,-648.63,0.00021643,2]
[372266145,1752568275851,-886.34,0.00021643,2]
[372266146,1752568275860,-966.64,0.00021643,2]
[372266147,1752568275869,-460.0,0.00021643,2]
[372266148,1752568275879,-284.06172,0.00021643,2]
[372266149,1752568275888,-1951.24,0.00021643,2]
[372266150,1752568275896,-210.121863,0.00021643,2]
[372266151,1752568275906,-689.19,0.00021643,2]
[372266152,1752568275915,-210.121863,0.00021643,2]
[372266153,1752568275926,-460.0,0.00021643,2]
[372266154,1752568275936,-460.0,0.00021643,2]
[372266155,1752568275944,-460.0,0.00021643,2]
[372266156,1752568275953,-2572.3,0.00021643,2]
[372266157,1752568275962,-460.0,0.00021643,2]
[372266158,1752568275972,-460.0,0.00021643,2]
[372266159,1752568275981,-518.31,0.00021643,2]
[372266160,1752568275991,-460.0,0.00021643,2]
[372266161,1752568276001,-460.0,0.00021643,2]
[372266162,1752568276011,-460.0,0.00021643,2]
[372266163,1752568276020,-922.11,0.00021643,2]
[372266164,1752568276030,-1848.23,0.00021643,2]
[372266165,1752568276041,-477.88,0.00021643,2]
[372266166,1752568276050,-7815.44,0.00021643,2]
[372266167,1752568276059,-1098.55,0.00021643,2]
[372266168,1752568276068,-460.0,0.00021643,2]
[372266169,1752568276078,-460.0,0.00021643,2]
[372266170,1752568276086,-600.27,0.00021643,2]
[372266171,1752568276095,-510.82927339,0.00021664,2]
[372266172,1752568276106,-2500.0,0.00021664,2]
[372266173,1752568276115,-4000.0,0.00021667,4]
[372266174,1752568276125,-712.59387777,0.00021678,2]
[372266175,1752568276134,-508.90043189,0.00021712,2]
[372266176,1752568276143,-3000.0,0.00021712,2]
[372266177,1752568276152,-865.86894857,0.00021731,2]
[372266178,1752568276162,-500.0,0.00021739,2]
[372266179,1752568276172,-151.0,0.00021762,2]
[372266180,1752568276181,-151.0,0.00021762,2]
[372266181,1752568276191,-680.083982,0.00021762,2]
[372266182,1752568276200,-680.083982,0.00021762,2]
[372266183,1752568276209,-12039.6221253,0.00021797,6]
[372266184,1752568276219,-168.0,0.00021819,2]
[372266185,1752568276228,-460.0,0.00021902,2]
[372266186,1752568276238,-460.0,0.00021917,2]
[372266187,1752568276247,-488.93166914,0.00021917,2]
[372266188,1752568276256,-517.51736164,0.00021917,2]
[372266189,1752568276265,-460.0,0.00021917,2]
[372266190,1752568276275,-474.04,0.00021917,2]
[372266191,1752568276286,-460.0,0.00021917,2]
[372266192,1752568276295,-460.0,0.00021917,2]
[372266193,1752568276305,-945.03,0.00021917,2]
[372266194,1752568276314,-460.0,0.00021917,2]
[372266195,1752568276324,-460.0,0.00021917,2]